Cogmind - Beta 10 @@@ ROGUE MODE // 2020.09.15 @ 10:11:09 Player: Jelly Result: Self-destructed Performance ------------- Evolutions (1) 500 Regions Visited (4) 800 Robots Destroyed (10) 50 Value Destroyed (271) 271 Prototype IDs (3) 60 Alien Tech Used (0) 0 Bonus (600) 600 TOTAL SCORE: 2281 Bonus ------- Met Imprinter 300 Was Imprinted 300 Cogmind --------- Core Integrity 343/400 Matter 300/300 Energy 160/160 System Corruption 0% Temperature Cool (0) Movement Walking (120) Location -7/Zion Parts ------- > --- POWER (1) -------- Light Nuclear Core > --- PROPULSION (2) --- Aluminum Leg Improved Aluminum Leg > --- UTILITY (3) ------ Small Storage Unit Salvage Targeting Computer Hacking Drone Bay (1/1) > --- WEAPON (3) ------- Small Laser Heavy Assault Rifle Heavy Assault Rifle > --- INVENTORY (6) ---- Ion Engine Aluminum Leg Aluminum Leg Heat Sink Particle Charger Grenade Launcher Peak State ------------ > --- POWER ------------ Light Nuclear Core > --- PROPULSION ------- Aluminum Leg Improved Aluminum Leg > --- UTILITY ---------- Small Storage Unit Salvage Targeting Computer Hacking Drone Bay > --- WEAPON ----------- Small Laser Heavy Assault Rifle Heavy Assault Rifle > --- INVENTORY -------- Ion Engine Aluminum Leg Aluminum Leg Heat Sink Particle Charger Grenade Launcher [Rating: 23] Favorites ----------- Power Light Nuclear Core Engine Ion Engine Power Core Light Nuclear Core Propulsion Aluminum Leg Leg Aluminum Leg Utility Small Storage Unit Device Heat Sink Storage Small Storage Unit Processor Salvage Targeting Computer Weapon Heavy Assault Rifle Energy Gun Small Laser Ballistic Gun Heavy Assault Rifle Build | -11 -10 -9 -9 -7 ------- Run | Scr Mat Mat Min Zio Slots Evolved 2 | . . 2 . . Power . | . . . . . Propulsion . | . . . . . Utility 1 | . . 1 . . Weapon 1 | . . 1 . . Parts Attached 11 | . 3 4 2 2 Power 1 | . . . 1 . Engine . | . . . . . Core 1 | . . . 1 . Reactor . | . . . . . Propulsion 2 | . 1 1 . . Treads . | . . . . . Leg 2 | . 1 1 . . Wheel . | . . . . . Hover . | . . . . . Flight . | . . . . . Utility 3 | . 1 1 . 1 Device 2 | . 1 . . 1 Storage . | . . . . . Processor 1 | . . 1 . . Hackware . | . . . . . Protection . | . . . . . Artifact . | . . . . . Weapon 5 | . 1 2 1 1 Energy Gun 3 | . 1 1 . 1 Energy Cannon . | . . . . . Ballistic Gun 2 | . . 1 1 . Ballistic Cannon . | . . . . . Launcher . | . . . . . Special Weapon . | . . . . . Impact Weapon . | . . . . . Slashing Weapon . | . . . . . Piercing Weapon . | . . . . . Special Melee Weapon . | . . . . . Unidentified Prototypes 1 | . . . . 1 Parts Lost 5 | . 2 3 . . Power 1 | . . 1 . . Propulsion 1 | . 1 . . . Utility . | . . . . . Weapon 3 | . 1 2 . . Highest Loss Streak 1 | . 1 1 . . Average Slot Usage (%) 97 | . 91 92 100 100 Engine 4 | . 14 11 . . Core 6 | . . . 11 11 Leg 22 | . 25 22 22 22 Device 10 | . 9 11 11 11 Storage 11 | . 14 11 11 11 Processor 8 | . . 9 11 11 Energy Gun 10 | . 5 16 11 11 Ballistic Gun 20 | . 22 11 22 22 Naked Turns . | . . . . . Heaviest Build 17 | 12 13 16 17 17 Greatest Support 23 | 20 20 23 23 23 Greatest Overweight (x) 1 | . 1 . . . Average Overweight (x) . | . . . . . Largest Inventory Capacity 6 | . 6 6 6 6 Average Capacity 6 | . 6 6 6 6 Most Carried 6 | . 6 6 5 6 Average Carried 5 | . 5 5 4 5 Final Capacity 6 | 6 6 6 6 6 Final Carried 6 | 6 6 6 4 6 Class Distribution -------------------- 64% | Scavenger-Gunner 28% | Mutant 7% | Gunner Dominant Class ---------------- Mutant | -10/Materials Mutant | -9/Materials Scavenger-Gunner | -9/Mines Scavenger-Gunner | -7/Zion Resources | -11 -10 -9 -9 -7 ----------- Run | Scr Mat Mat Min Zio Matter Collected 402 | 200 101 61 . 40 Remotely . | . . . . . Salvage Created 373 | . 254 119 . . Parts 20 | . 15 5 . . Haulers Intercepted 1 | . 1 . . . Recyclers Shooed . | . . . . . Parts Field Recycled . | . . . . . Retrieved Matter . | . . . . . Parts Self-Destructed . | . . . . . Prevented . | . . . . . Kills | -11 -10 -9 -9 -7 ------- Run | Scr Mat Mat Min Zio Combat Hostiles Destroyed 9 | . 7 2 . . Guns 9 | . 7 2 . . Classes Destroyed 4 | . 3 1 . . Hauler 1 | . 1 . . . Swarmer 3 | . 3 . . . Grunt 4 | . 4 . . . Sentry 2 | . . 2 . . Best Kill Streak 3 | . 3 2 . . Combat Bots Only 3 | . 3 2 . . Max Kills in Single Turn 1 | . 1 1 . . Gunslinging . | . . . . . Exploded . | . . . . . Melee . | . . . . . Uniques/NPCs Destroyed . | . . . . . Combat | -11 -10 -9 -9 -7 -------- Run | Scr Mat Mat Min Zio Damage Taken 756 | . 401 355 . . Core 128 | . 71 57 . . Absorbed by Shields . | . . . . . Core Remaining (%) 85 | 100 71 . . . Volleys Fired 40 | . 31 9 . . Largest 3 | . 2 3 . . Hottest 113 | . 70 113 . . Shots Fired 87 | . 62 25 . . Gun 87 | . 62 25 . . Cannon . | . . . . . Launcher . | . . . . . Special . | . . . . . Kinetic 58 | . 50 8 . . Thermal 29 | . 12 17 . . Explosive . | . . . . . Electromagnetic . | . . . . . Robot Hit Streak 16 | . 10 16 . . Robot Miss Streak 3 | . 3 2 . . Penetration Max . | . . . . . Secondary Targets . | . . . . . Shots Hit Robots 60 | . 42 18 . . Core Hits 18 | . 14 4 . . Critical Hits 1 | . 1 . . . Critical Kills . | . . . . . Critical Parts Destroyed 1 | . 1 . . . Melee Attacks . | . . . . . Impact . | . . . . . Slashing . | . . . . . Piercing . | . . . . . Sneak Attacks . | . . . . . Combat Hostiles . | . . . . . Follow-up Attacks . | . . . . . Damage Inflicted 649 | . 421 228 . . Guns 649 | . 421 228 . . Cannons . | . . . . . Explosions . | . . . . . Melee . | . . . . . Ramming . | . . . . . Kinetic 368 | . 286 82 . . Thermal 281 | . 135 146 . . Explosive . | . . . . . Electromagnetic . | . . . . . Impact . | . . . . . Slashing . | . . . . . Piercing . | . . . . . Highest Corruption 1 | . . 1 1 1 Average Corruption 1 | . . 1 1 1 Corruption Purged . | . . . . . Effects 1 | . . 1 . . Message Errors 1 | . . 1 . . Overload Shots . | . . . . . Overflow Damage . | . . . . . Projectiles . | . . . . . Explosions . | . . . . . Melee . | . . . . . Knockbacks . | . . . . . Impact . | . . . . . Kinetic . | . . . . . Secondary . | . . . . . Self-Inflicted Damage . | . . . . . Shots . | . . . . . Rammed . | . . . . . Targets Rammed . | . . . . . Kicked . | . . . . . Crushed . | . . . . . Highest Temperature 36 | . 26 36 . . Average Temperature 14 | . 11 18 . . Received Heat Transfer 237 | . 156 81 . . Siege Activations . | . . . . . Robots Corrupted . | . . . . . Combat Hostiles . | . . . . . Parts Fried . | . . . . . Impact Corruptions . | . . . . . Robots Melted . | . . . . . Combat Hostiles . | . . . . . Parts Melted 3 | . . 3 . . Heat Transferred 779 | . 407 372 . . Parts Sabotaged . | . . . . . Parts Stolen . | . . . . . Parts Stripped . | . . . . . Power Chain Reactions . | . . . . . Missiles Intercepted . | . . . . . Alert | -11 -10 -9 -9 -7 ------- Run | Scr Mat Mat Min Zio Peak Influence 222 | . 222 193 70 . Initial 93 | . . 93 70 . Average 125 | . 113 152 70 . Maximum Alert Level 1 | . 1 . . . Low Security (%) 80 | . 64 100 100 . Level 1 19 | . 35 . . . Level 2 . | . . . . . Level 3 . | . . . . . Level 4 . | . . . . . Level 5 . | . . . . . High Security . | . . . . . Max Security . | . . . . . Squads Dispatched 1 | . 1 . . . Investigation . | . . . . . Extermination . | . . . . . Reinforcement 1 | . 1 . . . Assault . | . . . . . Garrison . | . . . . . Intercept . | . . . . . Construction Impeded . | . . . . . Haulers Reinforced . | . . . . . Stealth | -11 -10 -9 -9 -7 --------- Run | Scr Mat Mat Min Zio Distress Signals 1 | . . 1 . . Communications Jammed . | . . . . . Distress Signals . | . . . . . Times Spotted 21 | . 11 10 . . Peak Tracking Total 4 | . 4 4 . . Tactical Retreats . | . . . . . Traps | -11 -10 -9 -9 -7 ------- Run | Scr Mat Mat Min Zio Traps Triggered 3 | . . 3 . . Indirectly . | . . . . . Trap Hack Attempts . | . . . . . Triggered . | . . . . . Disarmed . | . . . . . Reprogrammed . | . . . . . Reused . | . . . . . Traps Extracted . | . . . . . Installed . | . . . . . Triggered . | . . . . . Machines | -11 -10 -9 -9 -7 ---------- Run | Scr Mat Mat Min Zio Machines Disabled . | . . . . . Max in Single Turn . | . . . . . Machines Sabotaged . | . . . . . Garrisons Compromised . | . . . . . Overloaded Fab Kills . | . . . . . Fab Network Shutdowns . | . . . . . Hacking | -11 -10 -9 -9 -7 --------- Run | Scr Mat Mat Min Zio Machines Accessed 4 | . 2 2 . . Terminals 3 | . 1 2 . . Fabricators . | . . . . . Repair Stations . | . . . . . Recycling Units 1 | . 1 . . . Scanalyzers . | . . . . . Garrison Access . | . . . . . Total Hacks 7 | . 2 5 . . Successful 7 | . 2 5 . . Failed . | . . . . . Catastrophic . | . . . . . Database Lockouts . | . . . . . Manual 4 | . . . . 4 Terminals 6 | . 1 5 . . Fabricators . | . . . . . Repair Stations . | . . . . . Recycling Units 1 | . 1 . . . Scanalyzers . | . . . . . Garrison Access . | . . . . . Terminal Hacks 6 | . 1 5 . . Record 3 | . . 3 . . Prototype ID Bank 1 | . 1 . . . Emergency Access Points 1 | . . 1 . . Alert Level 1 | . . 1 . . Fabricator Hacks . | . . . . . Repair Station Hacks . | . . . . . Recycling Unit Hacks 1 | . 1 . . . Report Inventory 1 | . 1 . . . Scanalyzer . | . . . . . Garrison Access Hacks . | . . . . . Unauthorized Hacks . | . . . . . Terminals . | . . . . . Fabricators . | . . . . . Repair Stations . | . . . . . Recycling Units . | . . . . . Scanalyzers . | . . . . . Garrison Access . | . . . . . Data Cores Recovered . | . . . . . Used . | . . . . . Hacking Detections 3 | . 1 2 . . Full Trace Events . | . . . . . Feedback Events . | . . . . . Feedback Blocked . | . . . . . Robot Schematics Acquired . | . . . . . Robots Built . | . . . . . Matter . | . . . . . Time . | . . . . . Total Robot Build Rating . | . . . . . Part Schematics Acquired . | . . . . . Parts Built . | . . . . . Matter . | . . . . . Time . | . . . . . Total Part Build Rating . | . . . . . Parts Repaired . | . . . . . Time . | . . . . . Parts Recycled . | . . . . . Recycled Matter . | . . . . . Retrieved Matter . | . . . . . Retrieved Components . | . . . . . Parts Scanalyzed . | . . . . . Part Schematics Acquired . | . . . . . Parts Damaged . | . . . . . Bothacking | -11 -10 -9 -9 -7 ------------ Run | Scr Mat Mat Min Zio Used RIF Installer . | . . . . . Robots Hacked . | . . . . . Non-combat . | . . . . . Combat . | . . . . . Robot Hacks Applied . | . . . . . Relay Couplers Released . | . . . . . Robots Rewired . | . . . . . Allies Hacked . | . . . . . Hacks Repelled . | . . . . . Allies | -11 -10 -9 -9 -7 -------- Run | Scr Mat Mat Min Zio Total Allies 4 | . . . . 4 Largest Group 4 | . . . . 4 Highest-Rated Group 153 | . . . . 153 Highest-Rated Ally 40 | . . . . 40 Total Orders . | . . . . . Ally Attacks . | . . . . . Total Damage . | . . . . . Kills . | . . . . . Allies Corrupted . | . . . . . Allies Melted . | . . . . . Intel | -11 -10 -9 -9 -7 ------- Run | Scr Mat Mat Min Zio Robot Analysis Total . | . . . . . Derelict Logs Recovered 3 | . . . 1 2 Drone Launches . | . . . . . Drone Recoveries . | . . . . . Exploration | -11 -10 -9 -9 -7 ------------- Run | Scr Mat Mat Min Zio Turns Passed 1778 | . 376 275 46 1081 Spaces Moved 1319 | 1 203 195 37 883 Core . | . . . . . Treads . | . . . . . Legs 1319 | 1 203 195 37 883 Wheels . | . . . . . Hover . | . . . . . Flight . | . . . . . Fastest Speed 120 | 120 120 120 120 120 Average Speed 120 | 120 122 120 120 120 Slowest Speed 150 | 120 150 120 120 120 Overloaded Moves . | . . . . . Propulsion Burnouts . | . . . . . Robots Hopped . | . . . . . Cave-ins Triggered . | . . . . . Exploration Rate (%) 30 | 2 24 30 10 87 Regions Visited 4 Branch Regions 2 Pre-discovered Areas 3 | . . . 1 2 Known Exits Taken . | . . . . . Unknown Exits Taken 4 | 1 1 1 1 . Scrap Searched 2 | . . . . 2 Spaces Dug . | . . . . . Terrain Destroyed . | . . . . . Melee . | . . . . . Projectile . | . . . . . AOE . | . . . . . Terrain Rammed . | . . . . . Walls Destroyed . | . . . . . Machines Disabled . | . . . . . Actions | -11 -10 -9 -9 -7 --------- Run | Scr Mat Mat Min Zio Total 1434 | . 276 216 38 904 Wait 52 | . 31 7 . 14 Move 1315 | . 202 194 36 883 Hop . | . . . . . Pick Up 9 | . 5 1 . 3 Fast Attach 5 | . 2 2 . 1 Attach 4 | . 1 1 2 . Detach . | . . . . . Swap 2 | . . 1 . 1 Drop 7 | . 4 1 . 2 Fire 40 | . 31 9 . . Melee . | . . . . . Ram . | . . . . . Kick . | . . . . . Crush . | . . . . . Escape Stasis . | . . . . . Rewire . | . . . . . Trap . | . . . . . Miscellaneous . | . . . . . Route ------- -11/Scrapyard -10/Materials -9/Materials -9/Mines -7/Zion History --------- Turn | Location | Event 1 | -11/Scrapyard | Discovered new exit (range 0) 1 | -11/Scrapyard | Entered Materials 207 | -10/Materials | Discovered new exit (range 16) 308 | -10/Materials | Build established: Mutant 377 | -10/Materials | Entered another Materials area 377 | -9/Materials | Evolved 2 slots: Utility x1, Weapon x1 622 | -9/Materials | Discovered new exit (range 13) 652 | -9/Materials | Entered Mines 665 | -9/Mines | A Derelict revealed a hidden shortcut to a safe place 698 | -9/Mines | Entered Zion 739 | -7/Zion | System corruption cleaned by Quarantine Array 940 | -7/Zion | Build established: Scavenger-Gunner 953 | -7/Zion | Acquired unknown access codes intercepted by a Zionite 962 | -7/Zion | Given A8's code to call for help 1127 | -7/Zion | Learned location of Warlord (-5) 1129 | -7/Zion | Learned location of 1 exit from Factory 1156 | -7/Zion | Visited the Megawrench Repair Shop 1156 | -7/Zion | Megawrench repaired 8 parts 1213 | -7/Zion | Learned location of Data Miner (-6) 1292 | -7/Zion | Received a visual enhancement algorithm 1547 | -7/Zion | Imprinted 1549 | -7/Zion | Declared Zion's savior 1751 | -7/Zion | Given the Hacking Drone Bay 1754 | -7/Zion | Found Prototype Device 1757 | -7/Zion | Identified Hacking Drone Bay 1779 | -7/Zion | Self-destructed Last Messages --------------- Or you can just stay here forever like I do! 01668_ MK-M4J(z) toys with the Twisted Machinery. 01693_ PUBLIC SERVICE ANNOUNCEMENT: Quarantine Array scanned 1 system, cleaned 1. OM-22B(c): I put all my knowledge of 0b10 terminal hacking into this drone, but why bother? I can just do the hacks myself if I need to! You look like a terrible hacker. Take it. 01752_ Dropped Self-destruct Interrupter. 01754_ Acquired Prototype Device. 01755_ Self-destruct Interrupter emitting active interruption sequence. 01757_ Identified Hacking Drone Bay. R1-LH5(g): These parts are on loan from Warlord for anyone heading into dangerous territory for the good of all Derelicts. Put them to good use! 01775_ Searching scrap... 01775_ Found Imp. Signal Interpreter. 01775_ Found Mak. Hacking Suite. 01775_ Found Core Analyzer. 01775_ Found 25 Matter. 01776_ Acquired 20 matter. Map ----- +----------------------------------------------------+ | ????????????????????????????????????????????????? | | ????????????????????????????????????????????????? | | ????????????????????????????????????????????????? | | ????????????????????????????????????????????????? | | ????????????????????????????????????????????????? | | ????????????????????????????????????????????????? | | ????????????????????????????????????????????????? | | ????????????????????????????????????????????????? | | ????????????????????????????????????????????????? | | ????????????????????????????????????????????????? | | ????????????????????????????????????????????????? | | ????????????????????????????????????????????????? | | ????????????????????????????????????????????????? | | ????????????????????????????????????????????????? | | ????????????????????????????????????????????????? | | ????????????????????????????????????????????????? | | ????????????????????????????????????????????????? | | ????????????????????????????????????????????????? | | ????????????????????????????????????????????????? | | ????????????????????????????????????????????????? | | ????????????????????????????????????????????????? | | ????????????????????????????????????????????????? | | ????????????????????????????????????????????????? | | ???????????????????????#######??????????????????? | | ???????????????????????#]]!/!#??????????????????? | | ???????????????????????#[@!%[#??????????????????? | | ???????????????????????#[ !![#??????????????????? | | ????????????????? ?????##" "##??????????????????? | | ????????????????# ?????# #???????????????????? | | ????????????????# ????## #####???????????????? | | ????????????????# #???# ##??????????????? | | ????????????????# #??## #??????????????? | | ????????????????# #??# #??????????????? | | ????????????????# #??# ## ##??? ##????????? | | ????????????????# #### ##?####??? #????????? | | ????????????????# # ######??? #?????????? | | ?????????????#### ## ##"""### #??????????? | | ?????????????# # ## ##" " #??????????? | | ????????????## ## ## #???????????? | | ???????????## & ##???????????? | | ############ #????????????? | | """""""# ### #???????????? | | """""""# ##? #??????????? | | #### ### ##??????????? | | #???????????? | | # ##???????????? | | ####### ### ###????????????? | | """""""#???## #??###??????????????? | | """""""#???# ###???????????????????? | | ########??## ##?????????????????????? | +----------------------------------------------------+ Best States ------------- Heat Dissipation 38 Energy Generation 14 Energy Capacity 250 Matter Stores 300 Matter Capacity 300 Sight Range 16 Terrain Scan Density 10 Evasion (%) 40 Salvage Targeting 1 Item Schematics ----------------- None Robot Schematics ------------------ None Fabricated ------------ Nothing Alien Tech Used ----------------- None Achievements -------------- None Challenges ------------ None Game ------ Seed NetworkGlidesysSpear Manual? 0 Play Time 00:32:01 Cumulative 12.3 hours Start 2020.09.14 @ 21:07:16 End 2020.09.15 @ 10:11:09 Sessions 5 Manual Loads 0 Difficulty Rogue Special Mode None Game No. 21 Rogue 21 Adventurer 0 Explorer 0 Win Type - Total 0 Types 0/0/0/0/0/0/0/0/0 Lore% 16 Gallery% 18 Achievement% 14 Wizard Run 0 Options --------- ASCII 0 Keyboard 1 Movement Numpad Keybinds 0 Fullscreen 1 Font 18/SmallcapsGlow Map View 76x50 Tactical HUD 1 Map Filters NONE Filters NONE Steam 1 RUN: 71325385-8c83-415e-bb14-5aec2b3e4ed3